bitfinex-derivatives/quotes_BNBF0:USTF0_20250417
["timestamp","ask_amount","ask_price","bid_price","bid_amount"]
[1744923150732,0.29612792,591.59,590.65,3.384]
[1744923150930,0.29612792,591.58,590.65,3.384]
[1744923151127,0.29612792,591.59,590.65,3.384]
[1744923159941,0.582,591.6,590.65,3.384]
[1744923160141,0.29609759,591.59,590.65,3.384]
[1744923164738,0.582,591.6,590.65,3.384]
[1744923164938,0.2960994,591.59,590.65,3.384]
[1744923167938,0.29611395,591.58,590.65,3.384]
[1744923168137,0.29611395,591.59,590.65,3.384]
[1744923168342,0.29611395,591.58,590.65,3.384]
[1744923168538,0.29611395,591.57,590.65,3.384]
[1744923168743,0.29611395,591.56,590.65,3.384]
[1744923168943,0.29611395,591.59,590.65,3.384]
[1744923169141,0.29611395,591.58,590.65,3.384]
[1744923169339,0.29611395,591.59,590.65,3.384]
[1744923172748,0.29611532,591.58,590.65,3.384]
[1744923172948,0.29611532,591.57,590.65,3.384]
[1744923173142,0.29611532,591.59,590.65,3.384]
[1744923173452,0.29611532,591.58,590.65,3.384]
[1744923173747,0.29611532,591.59,590.65,3.384]
[1744923173947,0.29611532,591.58,590.65,3.384]
[1744923174144,0.29611532,591.59,590.65,3.384]
[1744923176951,0.29611532,591.61,590.65,3.384]
[1744923177152,0.29611532,591.6,590.65,3.384]
[1744923177451,0.29611133,591.59,590.65,3.384]
[1744923177648,0.29611133,591.61,590.65,3.384]
[1744923177948,0.29611133,591.6,590.65,3.384]
[1744923178150,0.29611133,591.61,590.65,3.384]
[1744923178354,0.29611133,591.6,590.65,3.384]
[1744923178754,0.29611133,591.59,590.65,3.384]
[1744923178952,0.29611133,591.61,590.65,3.384]
[1744923179149,0.29611133,591.6,590.65,3.384]
[1744923179454,0.29611133,591.59,590.65,3.384]
[1744923179649,0.29611133,591.58,590.65,3.384]
[1744923179852,0.29611133,591.61,590.65,3.384]
[1744923180053,0.29611133,591.6,590.65,3.384]
[1744923180349,0.88211133,591.59,590.65,3.384]
[1744923180654,0.29611133,591.58,590.65,3.384]
[1744923183153,0.586,591.59,590.65,3.384]
[1744923184057,0.586,591.59,590.66,0.33860427]
[1744923186755,0.586,591.59,590.66,1.03160427]
[1744923187057,0.586,591.59,590.66,2.16460427]
[1744923187557,0.586,591.59,590.66,3.03160427]
[1744923208570,0.29430793,592.08,590.66,3.03160427]
[1744923208771,0.63386364,592.07,590.66,3.03160427]
[1744923208972,0.63386935,592.06,590.66,3.03160427]
[1744923209170,0.33781501,592.04,590.66,3.03160427]
[1744923209471,0.29606575,592.03,590.66,3.03160427]
[1744923209666,0.33782642,592.02,590.66,3.03160427]
[1744923209970,0.29606575,592.01,590.66,3.03160427]
[1744923210171,0.33783783,592.0,590.66,3.03160427]
[1744923210367,0.29606575,591.99,590.66,3.03160427]
[1744923210765,0.633915,591.98,590.66,3.03160427]
[1744923211070,0.6339207,591.97,590.66,3.03160427]
[1744923211268,0.63392641,591.96,590.66,3.03160427]
[1744923211467,1.14092641,591.96,590.66,3.03160427]
[1744923211670,0.84486066,591.96,590.66,3.03160427]
[1744923211871,0.63389681,591.95,590.66,3.03160427]
[1744923212072,0.63390252,591.94,590.66,3.03160427]
[1744923212272,0.33787778,591.93,590.66,3.03160427]
[1744923212470,0.63390822,591.93,590.66,3.03160427]
[1744923212671,0.29603044,591.92,590.66,3.03160427]
[1744923212867,0.3378892,591.91,590.66,3.03160427]
[1744923213074,0.29603044,591.9,590.66,3.03160427]
[1744923213270,0.33790062,591.89,590.66,3.03160427]
[1744923213473,0.29603044,591.88,590.66,3.03160427]
[1744923213673,0.33791204,591.87,590.66,3.03160427]
[1744923213878,0.29603044,591.86,590.66,3.03160427]
[1744923214078,0.33792346,591.85,590.66,3.03160427]
[1744923214278,0.29603044,591.84,590.66,3.03160427]
[1744923214579,0.33793487,591.83,590.66,3.03160427]
[1744923214976,0.29599579,591.82,590.66,3.03160427]
[1744923215277,0.3379463,591.81,590.66,3.03160427]
[1744923215471,0.29599579,591.8,590.66,3.03160427]
[1744923215677,0.33795772,591.79,590.66,3.03160427]
[1744923215879,0.29599579,591.78,590.66,3.03160427]
[1744923216079,0.33796914,591.77,590.66,3.03160427]
[1744923216578,0.29600092,591.76,590.66,3.03160427]
[1744923216780,0.63397577,591.76,590.66,3.03160427]
[1744923216979,0.29600092,591.75,590.66,3.03160427]
[1744923221184,0.33797485,591.76,590.66,3.03160427]
[1744923221384,0.29600428,591.75,590.66,3.03160427]
[1744923222783,0.33797485,591.76,590.66,3.03160427]
[1744923222981,0.29600468,591.74,590.66,3.03160427]
[1744923223186,0.29600468,591.73,590.66,3.03160427]
[1744923223385,0.29600468,591.75,590.66,3.03160427]
[1744923223587,0.29600468,591.74,590.66,3.03160427]
[1744923223886,0.29600468,591.75,590.66,3.03160427]
[1744923224086,0.29600468,591.74,590.66,3.03160427]
[1744923224388,0.33797485,591.76,590.66,3.03160427]
[1744923224688,0.29600572,591.75,590.66,3.03160427]
[1744923229091,0.33797485,591.76,590.66,3.03160427]
[1744923229285,0.29618244,591.75,590.66,3.03160427]
[1744923230689,0.33797485,591.76,590.66,3.03160427]
[1744923230888,0.29618143,591.74,590.66,3.03160427]
[1744923231089,0.29618143,591.73,590.66,3.03160427]
[1744923231389,0.29618143,591.72,590.66,3.03160427]
[1744923231589,0.29618143,591.75,590.66,3.03160427]
[1744923231790,0.29618143,591.74,590.66,3.03160427]
[1744923231989,0.29618143,591.75,590.66,3.03160427]
[1744923233891,0.33797485,591.76,590.66,3.03160427]
[1744923234191,0.29617832,591.75,590.66,3.03160427]
[1744923236788,0.504,591.74,590.66,3.03160427]
[1744923236990,0.29617832,591.73,590.66,3.03160427]
[1744923242895,0.504,591.74,590.66,3.03160427]
[1744923243100,0.29617921,591.73,590.66,3.03160427]
[1744923246102,0.504,591.74,590.66,3.03160427]
[1744923246301,0.29619677,591.73,590.66,3.03160427]
[1744923247703,0.504,591.74,590.66,3.03160427]
[1744923247898,0.29620787,591.72,590.66,3.03160427]
[1744923248104,0.29620787,591.71,590.66,3.03160427]
[1744923248297,0.29620787,591.73,590.66,3.03160427]
[1744923248501,0.29620787,591.72,590.66,3.03160427]
[1744923248804,0.29620787,591.71,590.66,3.03160427]
[1744923249104,0.29620787,591.7,590.66,3.03160427]
[1744923249399,0.29620787,591.69,590.66,3.03160427]
[1744923249599,0.29620787,591.73,590.66,3.03160427]
[1744923249802,0.29620787,591.72,590.66,3.03160427]
[1744923250001,0.29620787,591.73,590.66,3.03160427]
[1744923250199,0.29620787,591.72,590.66,3.03160427]
[1744923250504,0.504,591.74,590.66,3.03160427]
[1744923250505,0.29620787,591.71,590.66,3.03160427]
[1744923250704,0.29620787,591.73,590.66,3.03160427]
[1744923250904,0.504,591.74,590.66,3.03160427]
[1744923251104,0.29620384,591.73,590.66,3.03160427]
[1744923255307,1.58374242,591.73,590.66,3.03160427]
[1744923255608,0.29620384,591.72,590.66,3.03160427]
[1744923259709,0.29620384,591.71,590.66,3.03160427]
[1744923259909,0.29620384,591.73,590.66,3.03160427]
[1744923264912,0.29620384,591.75,590.66,3.03160427]
[1744923267116,0.424,591.74,590.66,3.03160427]
[1744923267316,0.2963195,591.73,590.66,3.03160427]
[1744923272016,0.424,591.74,590.66,3.03160427]
[1744923272214,0.29632343,591.73,590.66,3.03160427]
[1744923273818,0.29632341,591.72,590.66,3.03160427]
[1744923274013,0.29632341,591.73,590.66,3.03160427]
[1744923275319,0.424,591.74,590.66,3.03160427]
[1744923275520,0.29632344,591.73,590.66,3.03160427]
[1744923279323,0.29632344,591.75,590.66,3.03160427]
[1744923279523,0.29632344,591.74,590.66,3.03160427]
[1744923279719,0.29632344,591.75,590.66,3.03160427]
[1744923280125,0.33797485,591.76,590.66,3.03160427]
[1744923280320,0.29627768,591.75,590.66,3.03160427]
[1744923281521,0.542,591.74,590.66,3.03160427]
[1744923281726,0.29627768,591.73,590.66,3.03160427]
[1744923283426,0.29628409,591.72,590.66,3.03160427]
[1744923283626,0.29628409,591.73,590.66,3.03160427]
[1744923283828,0.29628409,591.72,590.66,3.03160427]
[1744923284027,0.29628409,591.71,590.66,3.03160427]
[1744923284224,0.29628409,591.73,590.66,3.03160427]
[1744923284428,0.29628409,591.72,590.66,3.03160427]
[1744923284730,0.29628409,591.73,590.66,3.03160427]
[1744923284926,0.29628409,591.72,590.66,3.03160427]
[1744923285120,0.29628409,591.71,590.66,3.03160427]
[1744923285326,0.29628409,591.73,590.66,3.03160427]
[1744923285523,0.29628409,591.72,590.66,3.03160427]
[1744923285723,0.29628409,591.71,590.66,3.03160427]
[1744923285926,0.29628409,591.73,590.66,3.03160427]
[1744923286127,0.29628409,591.72,590.66,3.03160427]
[1744923286324,0.29628409,591.71,590.66,3.03160427]
[1744923286525,0.29628409,591.73,590.66,3.03160427]
[1744923286731,0.29628409,591.72,590.66,3.03160427]
[1744923287031,0.29628409,591.73,590.66,3.03160427]
[1744923287226,0.29628409,591.72,590.66,3.03160427]
[1744923287430,0.29628409,591.71,590.66,3.03160427]
[1744923287636,0.29628409,591.73,590.66,3.03160427]
[1744923287837,0.29628409,591.72,590.66,3.03160427]
[1744923288138,0.29628409,591.73,590.66,3.03160427]
[1744923288340,0.29630454,591.72,590.66,3.03160427]
[1744923288539,0.29630454,591.73,590.66,3.03160427]
[1744923289737,0.542,591.74,590.66,3.03160427]
[1744923289938,0.29633272,591.73,590.66,3.03160427]
[1744923291542,0.29634072,591.72,590.66,3.03160427]
[1744923291843,0.29634072,591.73,590.66,3.03160427]
[1744923292038,0.29634072,591.72,590.66,3.03160427]
[1744923292240,0.29634072,591.73,590.66,3.03160427]
[1744923292441,0.29634072,591.72,590.66,3.03160427]
[1744923292640,0.29634072,591.73,590.66,3.03160427]
[1744923292838,0.29634072,591.72,590.66,3.03160427]
[1744923293037,0.29634072,591.73,590.66,3.03160427]
[1744923297948,0.542,591.74,590.66,3.03160427]
[1744923298144,0.29634515,591.73,590.66,3.03160427]
[1744923301953,0.542,591.74,590.66,3.03160427]
[1744923303054,0.29634289,591.73,590.66,3.03160427]
[1744923303555,0.29634289,591.73,590.67,0.31087286]
[1744923303755,0.29634289,591.75,590.66,3.03160427]
[1744923303954,0.29634289,591.75,590.66,0.33860427]
[1744923306960,0.29634289,591.75,590.66,2.01960427]
[1744923307161,0.29634289,591.75,590.66,2.45360427]
[1744923307461,0.425,591.74,590.66,2.45360427]
[1744923307662,0.29634289,591.73,590.66,3.11760427]
[1744923317165,0.425,591.74,590.66,3.11760427]
[1744923317366,0.29631499,591.73,590.66,3.11760427]
[1744923320467,0.425,591.74,590.66,3.11760427]
[1744923320766,0.29629502,591.73,590.66,3.11760427]
[1744923327170,0.425,591.74,590.66,3.11760427]
[1744923327464,0.29628293,591.73,590.66,3.11760427]
[1744923328866,0.29627867,591.72,590.66,3.11760427]
[1744923329170,0.29627867,591.71,590.66,3.11760427]
[1744923329470,0.29627867,591.7,590.66,3.11760427]
[1744923329668,0.29627867,591.69,590.66,3.11760427]
[1744923329870,0.29627867,591.73,590.66,3.11760427]
[1744923330066,0.29627867,591.72,590.66,3.11760427]
[1744923330266,0.29627867,591.73,590.66,3.11760427]
[1744923330471,0.33797485,591.76,590.66,3.11760427]
[1744923330667,0.29627848,591.75,590.66,3.11760427]
[1744923332072,0.33797485,591.76,590.66,3.11760427]
[1744923332272,0.29628816,591.75,590.66,3.11760427]
[1744923333675,0.33797485,591.76,590.66,3.11760427]
[1744923333869,0.29630467,591.75,590.66,3.11760427]
[1744923334069,0.86630467,591.75,590.66,3.11760427]
[1744923334273,0.29630467,591.74,590.66,3.11760427]
[1744923338578,0.57,591.75,590.66,3.11760427]
[1744923338782,0.29607508,591.74,590.66,3.11760427]
[1744923340385,0.29606553,591.73,590.66,3.11760427]
[1744923340582,0.29606553,591.74,590.66,3.11760427]
[1744923340878,0.29606553,591.73,590.66,3.11760427]
[1744923341079,0.29606553,591.74,590.66,3.11760427]
[1744923343583,0.57,591.75,590.66,3.11760427]
[1744923343783,0.29609831,591.74,590.66,3.11760427]
[1744923345183,0.57,591.75,590.66,3.11760427]
[1744923345387,0.29610561,591.74,590.66,3.11760427]
[1744923346886,0.57,591.75,590.66,3.11760427]
[1744923347992,0.33797485,591.76,590.66,3.11760427]
[1744923352097,0.453,591.75,590.66,3.11760427]
[1744923356705,0.29609088,591.74,590.66,3.11760427]
[1744923361103,0.453,591.75,590.66,3.11760427]
[1744923361308,0.29608369,591.74,590.66,3.11760427]
[1744923362604,0.453,591.75,590.66,3.11760427]
[1744923362909,0.29602938,591.74,590.66,3.11760427]
[1744923369012,0.453,591.75,590.66,3.11760427]
[1744923369206,0.29598311,591.74,590.66,3.11760427]
[1744923370706,0.29597484,591.73,590.66,3.11760427]
[1744923370910,0.29597484,591.74,590.66,3.11760427]
[1744923371106,0.29597484,591.73,590.66,3.11760427]
[1744923371411,0.29597484,591.72,590.66,3.11760427]
[1744923371611,0.29597484,591.74,590.66,3.11760427]
[1744923372214,0.453,591.75,590.66,3.11760427]
[1744923372407,0.29596158,591.74,590.66,3.11760427]
[1744923377022,0.453,591.75,590.66,3.11760427]
[1744923377319,0.29584772,591.74,590.66,3.11760427]
[1744923380322,0.453,591.75,590.66,3.11760427]
[1744923380620,0.29583711,591.74,590.66,3.11760427]
[1744923381319,0.29583711,591.75,590.66,3.11760427]
[1744923381520,0.29583711,591.74,590.66,3.11760427]
[1744923381719,0.29583711,591.75,590.66,3.11760427]
[1744923381919,0.33797485,591.76,590.66,3.11760427]
[1744923382116,0.29583044,591.75,590.66,3.11760427]
[1744923383825,0.33797485,591.76,590.66,3.11760427]
[1744923384024,0.29581789,591.75,590.66,3.11760427]
[1744923384321,0.656,591.74,590.66,3.11760427]
[1744923384525,0.29581789,591.73,590.66,3.11760427]
[1744923389929,0.656,591.74,590.66,3.11760427]
[1744923390123,0.29580554,591.72,590.66,3.11760427]
[1744923390328,0.29580554,591.71,590.66,3.11760427]
[1744923390528,0.29580554,591.73,590.66,3.11760427]
[1744923390728,0.656,591.74,590.66,3.11760427]
[1744923390729,0.29580554,591.72,590.66,3.11760427]
[1744923390925,0.29580554,591.73,590.66,3.11760427]
[1744923391226,0.29580554,591.72,590.66,3.11760427]
[1744923391428,0.29580554,591.73,590.66,3.11760427]
[1744923391635,0.656,591.74,590.66,3.11760427]
[1744923391833,0.29580402,591.73,590.66,3.11760427]
[1744923394734,0.656,591.74,590.66,3.11760427]
[1744923394939,0.3379977,591.72,590.66,3.11760427]
[1744923395141,0.29579171,591.71,590.66,3.11760427]
[1744923395341,0.63379512,591.71,590.66,3.11760427]
[1744923395541,0.29579171,591.7,590.66,3.11760427]
[1744923399953,0.75779171,591.7,590.66,3.11760427]
[1744923400250,0.29579171,591.69,590.66,3.11760427]
[1744923401252,0.462,591.7,590.66,3.11760427]
[1744923401452,0.29581418,591.69,590.66,3.11760427]
[1744923402855,0.462,591.7,590.66,3.11760427]
[1744923403056,0.29580725,591.69,590.66,3.11760427]
[1744923405051,0.33802055,591.68,590.66,3.11760427]
[1744923405253,0.29580725,591.67,590.66,3.11760427]
[1744923405454,0.33803197,591.66,590.66,3.11760427]
[1744923405651,0.29580725,591.65,590.66,3.11760427]
[1744923405856,0.63384494,591.65,590.66,3.11760427]
[1744923406157,0.29574685,591.64,590.66,3.11760427]
[1744923406657,0.29573875,591.63,590.66,3.11760427]
[1744923406850,0.29573875,591.64,590.66,3.11760427]
[1744923407054,0.29573875,591.63,590.66,3.11760427]
[1744923407254,0.33803769,591.65,590.66,3.11760427]
[1744923407255,0.29573875,591.64,590.66,3.11760427]
[1744923407456,0.29573875,591.63,590.66,3.11760427]
[1744923407656,0.29573875,591.64,590.66,3.11760427]
[1744923409257,0.33803769,591.65,590.66,3.11760427]
[1744923409557,0.29570303,591.64,590.66,3.11760427]
[1744923409756,0.33804911,591.63,590.66,3.11760427]
[1744923409950,0.29570303,591.62,590.66,3.11760427]
[1744923410251,0.63375786,591.62,590.66,3.11760427]
[1744923410457,0.29570303,591.61,590.66,3.11760427]
[1744923410852,0.33805483,591.62,590.66,3.11760427]
[1744923411059,0.2957054,591.61,590.66,3.11760427]
[1744923412562,0.33805483,591.62,590.66,3.11760427]
[1744923412762,0.29571303,591.61,590.66,3.11760427]
[1744923413061,0.33806626,591.6,590.66,3.11760427]
[1744923413362,0.29571303,591.59,590.66,3.11760427]
[1744923414159,0.33806626,591.6,590.66,3.11760427]
[1744923414364,0.29576323,591.59,590.66,3.11760427]
[1744923415863,0.29569379,591.58,590.66,3.11760427]
[1744923416064,0.29569379,591.59,590.66,3.11760427]
[1744923416265,0.29569379,591.58,590.66,3.11760427]
[1744923416466,0.63377148,591.58,590.66,2.779]
[1744923416761,0.29569379,591.57,590.66,2.779]
[1744923420668,0.29570729,591.56,590.66,2.779]
[1744923420861,0.29570729,591.57,590.66,2.779]
[1744923421665,0.33807769,591.58,590.66,2.779]
[1744923421866,0.29570745,591.57,590.66,2.779]
[1744923423271,0.33807769,591.58,590.66,2.779]
[1744923423572,0.2957422,591.57,590.66,2.779]
[1744923424973,0.29573476,591.56,590.66,2.779]
[1744923425173,0.29573476,591.57,590.66,2.779]
[1744923425371,0.29573476,591.55,590.66,2.779]
[1744923425567,0.29573476,591.54,590.66,2.779]
[1744923425772,0.29573476,591.57,590.66,2.779]
[1744923425970,0.29573476,591.56,590.66,2.779]
[1744923426174,0.29573476,591.57,590.66,2.779]
[1744923426376,0.29573476,591.56,590.66,2.779]
[1744923426674,0.74681266,591.55,590.66,2.779]
[1744923426977,0.29581266,591.54,590.66,2.779]
[1744923431378,0.451,591.55,590.66,2.779]
[1744923431579,0.29582582,591.54,590.66,2.779]
[1744923432982,0.451,591.55,590.66,2.779]
[1744923433177,0.29582308,591.54,590.66,2.779]
[1744923434585,0.451,591.55,590.66,2.779]
[1744923434778,0.29576662,591.54,590.66,2.779]
[1744923437885,0.451,591.55,590.66,2.779]
[1744923438086,0.29578418,591.54,590.66,2.779]
[1744923439585,0.29578855,591.53,590.66,2.779]
[1744923439785,0.29578855,591.54,590.66,2.779]
[1744923439986,0.29578855,591.53,590.66,2.779]
[1744923440186,0.29578855,591.54,590.66,2.779]
[1744923444092,0.451,591.55,590.66,2.779]
[1744923444288,0.29578814,591.54,590.66,2.779]
[1744923448090,0.29578814,591.57,590.66,2.779]
[1744923449688,1.28753858,591.56,590.66,2.779]
[1744923449892,0.29578814,591.55,590.66,2.779]
[1744923450992,1.28753858,591.56,590.66,2.779]
[1744923451194,0.29573752,591.55,590.66,2.779]
[1744923451492,0.551,591.54,590.66,2.779]
[1744923451794,0.2957445,591.53,590.66,2.779]
[1744923452797,0.551,591.54,590.66,2.779]
[1744923462900,0.2959496,591.53,590.66,2.779]
[1744923467403,0.551,591.54,590.66,2.779]
[1744923467604,0.29594921,591.53,590.66,2.779]
[1744923469206,0.29592678,591.52,590.66,2.779]
[1744923469506,0.29592678,591.51,590.66,2.779]
[1744923469705,0.29592678,591.53,590.66,2.779]
[1744923472805,0.29592678,591.57,590.66,2.779]
[1744923475308,0.70592678,591.57,590.66,2.779]
[1744923475509,0.29592678,591.56,590.66,2.779]
[1744923480109,0.29583423,591.55,590.66,2.779]
[1744923480311,0.29583423,591.56,590.66,2.779]
[1744923480513,0.29583423,591.55,590.66,2.779]
[1744923480714,0.29583423,591.56,590.66,2.779]
[1744923480912,0.29583423,591.55,590.66,2.779]
[1744923481117,0.29583423,591.56,590.66,2.779]
[1744923492319,0.41,591.57,590.66,2.779]
[1744923492520,0.29581845,591.56,590.66,2.779]
[1744923493829,0.41,591.57,590.66,2.779]
[1744923494024,0.29582207,591.56,590.66,2.779]
[1744923497127,0.41,591.57,590.66,2.779]
[1744923497328,0.29582241,591.56,590.66,2.779]
[1744923500437,0.41,591.57,590.66,2.779]
[1744923500732,0.29581868,591.56,590.66,2.779]
[1744923502137,0.41,591.57,590.66,2.779]
[1744923502332,0.2958189,591.56,590.66,2.779]
[1744923505552,0.2958189,591.57,590.66,2.779]
[1744923508643,0.526,591.57,590.66,2.779]
[1744923508843,0.29580426,591.56,590.66,2.779]
[1744923510241,0.526,591.57,590.66,2.779]
[1744923510543,0.29580022,591.56,590.66,2.779]
[1744923510944,0.526,591.57,590.66,2.779]
[1744923511945,0.29579915,591.56,590.66,2.779]
[1744923513746,0.526,591.57,590.66,2.779]
[1744923513946,0.2957135,591.56,590.66,2.779]
[1744923517149,0.29567037,591.55,590.66,2.779]
[1744923517348,0.29567037,591.56,590.66,2.779]
[1744923517548,0.29567037,591.55,590.66,2.779]
[1744923517751,0.29567037,591.56,590.66,2.779]
[1744923520255,0.526,591.57,590.66,2.779]
[1744923520456,0.29572062,591.56,590.66,2.779]
[1744923521356,0.526,591.57,590.66,2.779]
[1744923521553,0.29571955,591.56,590.66,2.779]
[1744923524855,0.526,591.57,590.66,2.779]
[1744923525061,0.29577652,591.56,590.66,2.779]
[1744923535165,0.29577652,591.55,590.66,2.779]
[1744923535363,0.29577652,591.57,590.66,2.779]
[1744923535568,0.29577652,591.56,590.66,2.779]
[1744923535767,0.29577652,591.57,590.66,2.779]
[1744923535962,0.33807769,591.58,590.66,2.779]
[1744923536162,0.2957715,591.57,590.66,2.779]
[1744923537466,0.33807769,591.58,590.66,2.779]
[1744923537769,0.29576524,591.57,590.66,2.779]
[1744923538369,0.72576524,591.57,590.66,2.779]
[1744923538570,0.29576524,591.56,590.66,2.779]
[1744923539067,0.43,591.57,590.66,2.779]
[1744923539267,0.29576326,591.56,590.66,2.779]
[1744923543373,0.43,591.57,590.66,2.779]
[1744923543575,0.29576893,591.56,590.66,2.779]
[1744923546581,0.43,591.57,590.66,2.779]
[1744923546875,0.29576643,591.56,590.66,2.779]
[1744923549771,0.43,591.57,590.66,2.779]
[1744923550075,0.29576353,591.56,590.66,2.779]
[1744923550675,0.43,591.57,590.66,2.779]
[1744923550877,0.7680834,591.57,590.66,2.779]
[1744923560386,0.2958326,591.56,590.66,2.779]
[1744923560686,0.3380834,591.57,590.66,2.779]
[1744923564088,0.9600834,591.57,590.66,2.779]
[1744923571089,0.29583877,591.56,590.66,2.779]
[1744923572085,0.9600834,591.57,590.66,2.779]
[1744923572286,0.29584017,591.56,590.66,2.779]
[1744923573792,0.29582569,591.55,590.66,2.779]
[1744923573991,0.29582569,591.56,590.66,2.779]
[1744923574192,0.29582569,591.55,590.66,2.779]
[1744923574394,0.29582569,591.56,590.66,2.779]
[1744923574592,0.29582569,591.55,590.66,2.779]
[1744923574893,0.29582569,591.56,590.66,2.779]
[1744923575094,0.29582569,591.55,590.66,2.779]
[1744923575293,0.9600834,591.57,590.66,2.779]
[1744923575494,0.29577622,591.56,590.66,2.779]
[1744923580097,0.9600834,591.57,590.66,2.779]
[1744923580297,0.29574367,591.56,590.66,2.779]
[1744923581601,0.9600834,591.57,590.66,2.779]
[1744923581896,0.29574843,591.56,590.66,2.779]
[1744923583197,0.9600834,591.57,590.66,2.779]
[1744923583395,0.29574512,591.56,590.66,2.779]
[1744923589605,0.3380834,591.57,590.66,2.779]
[1744923589906,0.29574854,591.56,590.66,2.779]
[1744923590806,0.546,591.55,590.66,2.779]
[1744923591007,0.29574854,591.54,590.66,2.779]
[1744923591308,0.29575175,591.53,590.66,2.779]
[1744923591500,0.29575175,591.54,590.66,2.779]
[1744923591705,0.29575175,591.53,590.66,2.779]
[1744923592102,0.29575175,591.52,590.66,2.779]
[1744923592305,0.546,591.55,590.66,2.779]
[1744923598113,0.546,591.55,590.67,0.33859854]
[1744923601420,0.546,591.55,590.67,0.46759854]
[1744923601615,0.546,591.55,590.67,0.94659854]
[1744923601820,0.546,591.55,590.67,1.50959854]
[1744923602115,0.546,591.55,590.67,2.07959854]
[1744923602320,0.546,591.55,590.67,2.53059854]
[1744923602514,0.546,591.55,590.67,3.01759854]
[1744923617426,0.546,591.55,590.68,0.31078374]
[1744923617627,0.546,591.55,590.69,0.33858707]
[1744923617827,0.546,591.55,590.7,0.31078156]
[1744923618032,0.546,591.55,590.71,0.33857561]
[1744923618229,0.546,591.55,590.72,0.31078156]
[1744923619335,0.546,591.55,590.73,0.33856414]
[1744923619735,0.546,591.55,590.74,0.31080414]
[1744923619933,1.28753858,592.38,590.74,0.31080414]
[1744923619934,0.29422582,592.1,590.75,0.33855268]
[1744923620133,0.63358016,592.09,590.75,0.95655268]
[1744923620335,0.63358587,592.08,590.75,0.95655268]
[1744923620534,0.63359157,592.07,590.75,0.95655268]
[1744923620730,0.3378036,592.06,590.75,0.95655268]
[1744923620937,0.29579311,592.05,590.75,0.95655268]
[1744923621130,0.33781501,592.04,590.76,0.129]
[1744923621330,0.29579311,592.03,590.76,0.129]
[1744923621530,0.33782642,592.02,590.76,0.129]
[1744923621730,0.29579311,592.01,590.76,0.129]
[1744923622034,0.33783783,592.0,590.76,0.129]
[1744923622235,0.29579311,591.99,590.76,0.129]
[1744923622437,0.33784925,591.98,590.76,0.129]
[1744923622631,0.29578524,591.97,590.76,0.129]
[1744923622837,0.33786066,591.96,590.77,0.531]
[1744923623037,0.29578524,591.95,590.77,0.531]
[1744923623339,0.33787208,591.94,590.77,0.531]
[1744923623638,0.29578524,591.93,590.77,0.531]
[1744923623839,0.63366302,591.93,590.77,0.531]
[1744923624138,0.29578524,591.92,590.77,0.531]
[1744923627743,0.29578524,591.92,590.78,0.31079001]
[1744923628140,0.29578524,591.92,590.79,0.33852976]
[1744923628338,0.29578524,591.92,590.8,0.31079001]
[1744923628539,0.29578524,591.92,590.81,0.3385183]
[1744923628739,0.29578524,591.92,590.82,0.31079001]
[1744923628944,0.29578524,591.92,590.81,0.3385183]
[1744923629140,0.29578524,591.92,590.81,0.8345183]
[1744923629844,0.29578524,591.92,590.81,1.3975183]
[1744923630046,0.29578524,591.92,590.82,0.31076851]
[1744923630245,0.29578524,591.92,590.81,1.3975183]
[1744923630445,0.29578524,591.92,590.82,0.31077261]
[1744923630645,0.33787778,591.93,590.81,1.3975183]
[1744923630842,0.29583022,591.92,590.81,1.3975183]
[1744923632041,0.29583165,591.91,590.81,1.3975183]
[1744923632247,0.29583165,591.9,590.81,1.3975183]
[1744923632449,0.29583165,591.92,590.81,1.3975183]
[1744923632648,0.29583165,591.91,590.81,1.3975183]
[1744923632842,0.29583165,591.92,590.81,1.3975183]
[1744923633150,0.29583165,591.91,590.81,1.3975183]
[1744923633445,0.29583165,591.9,590.81,1.3975183]
[1744923633649,0.2958361,591.89,590.81,1.3975183]
[1744923633948,0.2958361,591.88,590.81,1.3975183]
[1744923634146,0.2958361,591.92,590.81,1.3975183]
[1744923634448,0.2958361,591.92,590.81,2.0615183]
[1744923635151,0.33787778,591.93,590.81,2.0615183]
[1744923635347,0.29583815,591.92,590.81,2.0615183]
[1744923635948,0.29583815,591.92,590.81,2.1905183]